bitfinex-derivatives/quotes_ETHF0:USTF0_20241228
["timestamp","ask_amount","ask_price","bid_price","bid_amount"]
[1735408010013,0.4238,3399.7,3399.6,0.29467]
[1735408010208,3.2078,3400.7,3399.6,3.2078]
[1735408010405,0.7308,3400.4,3400.3,0.2946]
[1735408010608,0.4362,3400.4,3400.3,0.2946]
[1735408011308,0.4362,3400.4,3399.7,0.8593]
[1735408011517,3.2078,3400.3,3400.2,0.29462]
[1735408013015,3.2078,3400.3,3399.7,1.59595]
[1735408013016,0.4362,3400.4,3400.3,0.29461]
[1735408013707,6.06314638,3401.2,3400.1,3.2078]
[1735408013708,4.86614638,3401.2,3400.1,3.2078]
[1735408013909,0.29458,3400.8,3400.7,0.29457]
[1735408014918,0.2946,3400.5,3400.1,3.2078]
[1735408015121,0.4277,3400.4,3400.3,0.29461]
[1735408016609,0.7223,3400.4,3400.3,0.29461]
[1735408017033,0.4277,3400.4,3400.3,0.29461]
[1735408019017,0.2946,3400.5,3400.4,0.2946]
[1735408021616,3.6599,3400.8,3399.9,0.73661]
[1735408021814,0.29462,3400.4,3400.3,0.29461]
[1735408022520,3.46436342,3400.7,3399.8,0.4406]
[1735408022722,3.46436342,3400.7,3399.7,6.46210638]
[1735408022723,0.29461,3400.5,3400.4,0.2946]
[1735408023318,1.65834638,3400.6,3399.7,4.80376]
[1735408023513,1.65834638,3400.6,3399.7,0.29466]
[1735408023514,0.29466,3399.8,3399.7,0.29466]
[1735408023823,3.2078,3400.1,3399.3,3.94455]
[1735408023824,0.29468,3399.6,3399.5,0.29468]
[1735408024013,3.29625638,3400.0,3399.3,3.2078]
[1735408024212,0.29468,3399.5,3399.4,0.29468]
[1735408024424,0.29468,3399.6,3399.5,0.29468]
[1735408024722,3.29625638,3400.0,3399.3,3.2078]
[1735408024913,0.29468,3399.5,3399.3,3.2078]
[1735408025221,0.29471,3399.2,3399.1,0.29471]
[1735408025417,0.29472,3399.1,3398.9,0.29473]
[1735408025810,0.29473,3399.0,3398.9,0.29473]
[1735408026317,0.29473,3399.0,3398.8,3.2078]
[1735408026318,3.90446342,3399.3,3398.8,3.2078]
[1735408026619,3.90446342,3399.3,3398.9,0.29473]
[1735408026620,0.29473,3399.1,3398.9,0.29473]
[1735408027025,3.90446342,3399.3,3398.8,3.2078]
[1735408027211,0.29471,3399.2,3399.0,0.29472]
[1735408027443,3.90446342,3399.3,3399.0,0.29472]
[1735408027622,0.29471,3399.2,3399.0,0.29472]
[1735408027822,0.29471,3399.2,3399.1,0.29472]
[1735408028534,0.29471,3399.2,3398.8,3.2078]
[1735408028715,3.90446342,3399.3,3398.9,0.29474]
[1735408028916,0.29473,3399.1,3399.0,0.29473]
[1735408029125,4.19917342,3399.3,3399.2,0.29472]
[1735408029321,0.29472,3399.2,3399.1,0.29472]
[1735408029818,3.90446342,3399.3,3399.1,0.29472]
[1735408029819,0.4401,3399.3,3399.1,0.29472]
[1735408030016,0.73481,3399.3,3399.2,0.29472]
[1735408030211,2.60350899,3399.5,3399.3,0.29471]
[1735408030419,2.30881899,3399.5,3399.4,0.2947]
[1735408030815,0.18961899,3399.5,3399.4,10.16084638]
[1735408031020,0.18961899,3399.7,3399.6,0.29468]
[1735408031238,1.96068241,3399.8,3399.7,0.29467]
[1735408031417,1.96068241,3399.8,3399.7,2.41354322]
[1735408031633,1.96068241,3399.8,3399.7,2.83405896]
[1735408031817,1.96068241,3399.8,3399.7,2.8340607]
[1735408032232,0.29458,3400.7,3400.6,0.29459]
[1735408032832,3.2078,3401.0,3400.4,0.73653]
[1735408033027,3.50236,3401.0,3400.9,0.29456]
[1735408034330,3.2078,3401.0,3400.2,3.2078]
[1735408034531,0.29461,3400.4,3400.3,0.2946]
[1735408035127,3.2078,3400.6,3399.8,3.2078]
[1735408035336,3.50239,3400.6,3400.5,0.29459]
[1735408035539,3.50239,3400.6,3399.9,0.73662]
[1735408035731,3.50239,3400.6,3400.0,1.03124]
[1735408036046,3.50239,3400.6,3400.5,0.29459]
[1735408036529,3.50239,3400.6,3400.0,0.29464]
[1735408036732,4.86614638,3400.6,3400.1,0.29462]
[1735408036928,0.29462,3400.2,3400.1,0.29462]
[1735408037129,4.86614638,3400.6,3399.5,3.94449]
[1735408037130,1.65834638,3400.3,3399.5,3.2078]
[1735408037330,0.29464,3400.0,3399.7,0.29466]
[1735408037526,0.71545,3399.9,3399.7,0.29466]
[1735408038151,0.71545,3399.9,3399.6,0.29467]
[1735408038335,0.71545,3399.9,3399.7,0.29466]
[1735408038537,0.29465,3399.8,3399.1,10.10380292]
[1735408038830,3.6286,3399.9,3399.7,0.29466]
[1735408039031,3.92325,3399.9,3399.7,0.29465]
[1735408039231,3.92325,3399.9,3399.8,0.29465]
[1735408039631,3.6286,3399.9,3399.8,0.29465]
[1735408040433,3.92325,3399.9,3399.8,0.29465]
[1735408040933,3.92325,3399.9,3399.3,0.73675]
[1735408041136,3.6286,3399.9,3399.1,3.2078]
[1735408041436,0.29466,3399.8,3399.6,0.29467]
[1735408041639,3.92325,3399.9,3399.8,0.29465]
[1735408043136,3.92325,3399.9,3399.2,0.73677]
[1735408043637,3.92325,3399.9,3399.8,0.29465]
[1735408044034,3.6286,3399.9,3399.8,0.29465]
[1735408046148,0.4208,3399.9,3399.8,0.29465]
[1735408048453,0.29466,3399.7,3399.6,3.50247]
[1735408048853,0.29466,3399.7,3399.6,3.2078]
[1735408050441,0.2947,3399.3,3399.2,0.29471]
[1735408050649,0.4635,3399.8,3399.1,3.50251]
[1735408050650,0.29471,3399.2,3399.1,3.50251]
[1735408050848,0.29471,3399.2,3399.1,3.2078]
[1735408051147,0.29471,3399.1,3399.0,0.29472]
[1735408051342,1.17471,3399.1,3399.0,0.29472]
[1735408052862,4.0878,3399.1,3398.4,0.73694]
[1735408053160,4.0878,3399.1,3398.3,10.10380292]
[1735408053348,0.29473,3398.9,3398.5,0.73692]
[1735408053545,0.29473,3398.9,3398.8,0.29474]
[1735408054852,0.75013,3399.0,3398.9,0.29473]
[1735408056452,0.29474,3398.9,3398.8,0.29474]
[1735408056651,0.4554,3399.0,3398.3,3.2078]
[1735408056856,1.65834638,3398.8,3398.3,3.2078]
[1735408057057,0.29477,3398.5,3398.4,0.29477]
[1735408057655,0.29476,3398.6,3398.5,0.29476]
[1735408058058,1.65834638,3398.8,3398.3,3.2078]
[1735408058260,0.42,3398.5,3398.3,3.2078]
[1735408058553,0.2948,3398.1,3398.0,0.29481]
[1735408058858,0.29479,3398.3,3398.0,0.29481]
[1735408059049,0.71569,3398.3,3398.0,0.29481]
[1735408059251,0.71569,3398.3,3398.1,0.2948]
[1735408060262,3.2078,3398.2,3397.3,3.2078]
[1735408060468,0.29484,3397.7,3397.5,0.29485]
[1735408060656,0.8406,3397.6,3397.5,0.29485]
[1735408060864,1.2749,3397.6,3397.5,0.29485]
[1735408061166,6.14104638,3397.6,3396.9,6.89600292]
[1735408061358,6.14104638,3397.6,3397.3,0.29486]
[1735408061549,0.29486,3397.5,3397.4,0.29486]
[1735408062254,0.29487,3397.4,3397.3,0.29487]
[1735408062556,0.29487,3397.3,3397.2,0.29488]
[1735408062859,4.4827,3397.6,3396.8,3.2078]
[1735408063059,4.4827,3397.6,3397.3,0.29487]
[1735408063060,0.29487,3397.4,3397.3,0.29487]
[1735408063363,0.29487,3397.3,3397.2,0.29488]
[1735408063866,0.29487,3397.4,3397.3,0.29487]
[1735408064058,4.4827,3397.6,3396.9,0.29491]
[1735408064454,0.29486,3397.4,3397.3,0.29487]
[1735408064655,3.2078,3397.6,3397.5,0.29485]
[1735408064861,3.6306,3398.1,3397.3,3.2078]
[1735408065062,3.2078,3398.1,3398.0,0.29481]
[1735408065255,3.2078,3398.5,3398.4,0.29477]
[1735408065683,4.62560879,3398.6,3398.1,3.2078]
[1735408065971,4.62560879,3398.6,3398.5,0.29477]
[1735408066555,1.14545,3398.7,3398.5,0.29477]
[1735408066753,0.8507,3398.7,3398.5,0.29477]
[1735408066966,0.8507,3398.7,3397.8,0.73708]
[1735408067161,0.8507,3398.7,3397.7,3.2078]
[1735408067162,3.2078,3398.5,3397.9,0.73706]
[1735408068469,3.50257,3398.5,3398.4,0.29478]
[1735408068669,3.50257,3398.5,3397.8,0.29482]
[1735408068670,0.29482,3398.0,3397.8,0.29482]
[1735408068967,3.2078,3398.0,3397.9,0.29482]
[1735408069471,3.50261,3398.0,3397.9,0.29482]
[1735408070271,3.50255,3398.8,3398.6,0.29476]
[1735408070568,2.50904638,3398.7,3397.9,3.2078]
[1735408070782,0.29479,3398.3,3398.2,0.29479]
[1735408070969,2.50904638,3398.7,3397.6,0.73712]
[1735408071167,3.2078,3398.4,3397.6,0.73712]
[1735408071374,0.4494,3398.3,3397.6,0.73712]
[1735408071684,0.74419,3398.3,3397.6,0.73712]
[1735408071871,0.74419,3398.3,3398.2,0.2948]
[1735408073774,0.4494,3398.3,3398.2,0.2948]
[1735408074089,3.2078,3398.4,3397.8,0.73708]
[1735408074090,3.2078,3398.4,3397.8,3.2078]
[1735408074270,0.8507,3398.7,3397.8,3.2078]
[1735408074271,0.8507,3398.7,3398.6,0.29476]
[1735408074472,0.4228,3398.7,3398.6,0.29476]
[1735408076369,3.2078,3398.9,3398.8,0.29474]
[1735408078379,0.9043,3399.1,3398.5,0.73692]
[1735408078570,0.9043,3399.1,3399.0,0.29473]
[1735408078973,1.19902,3399.1,3399.0,0.29473]
[1735408079365,0.9043,3399.1,3399.0,0.29473]
[1735408079576,1.19902,3399.1,3399.0,0.29473]
[1735408079976,3.2078,3399.3,3399.2,0.29471]
[1735408080672,3.2078,3399.3,3399.0,0.29472]
[1735408080877,3.2078,3399.3,3398.4,0.4427]
[1735408080878,4.86614638,3399.3,3398.4,0.4427]
[1735408081282,3.2078,3399.3,3398.4,0.4427]
[1735408081481,3.2078,3399.3,3399.2,0.29471]
[1735408082875,0.4415,3399.6,3399.5,0.29468]
[1735408083277,3.2078,3399.7,3399.6,0.29467]
[1735408083480,3.50247,3399.7,3399.6,0.29467]
[1735408083676,3.2078,3399.7,3399.2,0.4538]
[1735408083877,0.29468,3399.6,3399.5,0.29468]
[1735408084376,0.72228,3399.6,3399.5,0.29468]
[1735408085976,0.4276,3399.6,3399.5,0.29468]
[1735408087382,0.72227,3399.6,3399.5,0.29468]
[1735408087781,0.29471,3399.3,3399.2,0.2947]
[1735408087982,3.50251,3399.3,3399.2,0.2947]
[1735408094987,3.2078,3399.3,3399.2,0.2947]
[1735408095889,3.9685,3399.3,3399.2,0.2947]
[1735408096078,0.29474,3398.9,3398.8,0.29474]
[1735408096501,0.4219,3399.2,3398.5,0.73693]
[1735408096690,0.433,3398.8,3398.7,0.29475]
[1735408097192,3.45976627,3399.1,3398.5,0.73693]
[1735408097590,0.29474,3399.0,3398.9,0.29473]
[1735408097822,0.29473,3399.0,3398.9,0.29473]
[1735408098090,3.75449627,3399.1,3399.0,0.29473]
[1735408099492,0.29473,3399.1,3399.0,0.29473]
[1735408100394,0.74703,3399.1,3399.0,0.29473]
[1735408101602,0.74703,3399.1,3398.9,0.29473]
[1735408101603,0.29473,3399.0,3398.9,0.29473]
[1735408102803,0.74702,3399.1,3399.0,0.29473]
[1735408102999,4.77523879,3399.2,3399.1,0.29472]
[1735408104199,4.62560879,3399.2,3399.1,0.29472]
[1735408104403,2.54255879,3399.2,3399.1,5.29472]
[1735408104602,3.2078,3400.2,3399.9,0.29465]
[1735408104603,3.46285085,3400.0,3399.9,0.29465]
[1735408106320,1.309,3400.5,3400.4,0.29461]
[1735408106803,1.6036,3400.5,3400.4,0.29461]
[1735408109304,1.309,3400.5,3400.4,0.29461]
[1735408113003,2.96734638,3400.5,3399.8,3.2078]
[1735408113302,2.96734638,3400.5,3396.4,1.03248789]
[1735408113303,0.73659,3400.1,3399.0,4.86614638]
[1735408113504,0.29467,3399.7,3399.6,0.29468]
[1735408113804,3.50246,3399.8,3399.7,0.29466]
[1735408114100,3.2078,3399.8,3399.7,0.29466]
[1735408114310,0.29465,3399.8,3399.7,0.29466]
[1735408114906,0.29465,3399.9,3399.8,0.29464]
[1735408116707,8.98526863,3400.2,3400.1,0.29463]
[1735408116911,3.2078,3400.2,3400.1,0.29463]
[1735408117216,0.4276,3400.5,3400.4,0.2946]
[1735408117544,14.98908807,3400.6,3400.5,0.29459]
[1735408118401,3.46199425,3400.6,3400.5,0.29459]
[1735408119617,3.50238,3400.7,3400.2,3.2078]
[1735408119929,3.50238,3400.7,3400.6,0.29458]
[1735408120806,3.2078,3400.7,3400.2,3.2078]
[1735408121018,0.29461,3400.3,3400.2,3.50241]
[1735408121214,0.29464,3400.0,3399.9,0.29463]
[1735408122214,0.29463,3400.1,3400.0,0.29463]
[1735408122421,0.449,3400.2,3399.5,3.9445]
[1735408122718,0.29465,3400.0,3399.9,0.29464]
[1735408122912,0.29467,3399.8,3399.7,0.29465]
[1735408125220,3.2078,3399.9,3399.1,3.2078]
[1735408125484,3.2078,3399.9,3398.8,4.60011185]
[1735408125485,0.2947,3399.4,3399.3,0.29469]
[1735408126217,1.65834638,3399.4,3398.8,4.60011185]
[1735408126528,0.29473,3399.0,3398.9,0.29472]
[1735408126721,0.29473,3399.0,3398.8,4.60011185]
[1735408126722,0.29473,3398.9,3398.8,4.89484185]
[1735408127419,0.29473,3398.9,3398.8,0.29473]
[1735408127717,3.46199425,3399.0,3398.6,0.29475]
[1735408127718,0.29476,3398.7,3398.6,0.29475]
[1735408127913,3.46199425,3399.0,3398.5,3.2078]
[1735408127914,0.29476,3398.6,3398.5,3.50256]
[1735408128321,0.29476,3398.6,3397.6,1.4902]
[1735408128322,3.2078,3398.6,3398.0,3.2078]
[1735408128530,0.2948,3398.2,3398.1,0.29479]
[1735408129116,0.29478,3398.4,3398.3,0.29477]
[1735408129423,0.9064,3398.5,3398.0,3.2078]
[1735408129622,1.20117,3398.5,3398.4,0.29477]
[1735408130016,3.46199425,3398.4,3398.0,3.2078]
[1735408130217,3.75677425,3398.4,3398.3,0.29478]
[1735408130821,0.2948,3398.1,3398.0,3.5026]
[1735408131226,0.2948,3398.1,3398.0,3.50261]
[1735408131728,3.46199425,3398.4,3398.3,0.29478]
[1735408133116,3.46199425,3398.4,3398.3,5.29478]
[1735408133323,9.23198467,3398.8,3398.3,5.0]
[1735408133514,3.46199425,3398.8,3398.7,0.29475]
[1735408134515,0.4536,3399.3,3398.6,3.2078]
[1735408134724,0.4536,3399.3,3399.2,0.2947]
[1735408136621,3.2078,3400.0,3399.2,8.2078]
[1735408136828,3.2078,3400.0,3399.9,0.29464]
[1735408137828,3.50243,3400.0,3399.9,0.29464]
[1735408139177,3.50243,3400.0,3399.4,0.73672]
[1735408139178,0.29467,3399.6,3399.5,0.29467]
[1735408139323,0.29468,3399.5,3399.4,0.29468]
[1735408139532,0.73078,3399.5,3399.4,0.29468]
[1735408140239,0.4361,3399.5,3399.4,0.29468]
[1735408140423,0.73077,3399.5,3399.4,0.29468]
[1735408140624,0.29469,3399.4,3399.3,0.29469]
[1735408140824,0.74429,3399.4,3399.3,0.29469]
[1735408141929,3.6574,3399.4,3399.3,0.29469]
[1735408142536,3.95208,3399.4,3399.3,0.29469]
[1735408143326,3.6574,3399.4,3399.3,0.29469]
[1735408146650,3.6574,3399.4,3399.1,0.2947]
[1735408146651,0.29471,3399.2,3399.1,0.2947]
[1735408147543,0.29473,3398.9,3398.8,0.29473]
[1735408147735,0.4479,3399.1,3398.7,4.60011185]
[1735408148039,0.29472,3399.0,3398.9,0.29472]
[1735408149238,0.4479,3399.1,3398.6,3.94467]
[1735408149459,3.6574,3399.4,3399.3,0.29469]
[1735408150141,0.4496,3399.4,3399.3,3.50249]
[1735408150637,3.46199425,3399.8,3399.7,0.29466]
[1735408150839,3.89469425,3399.8,3399.7,0.29466]
[1735408151344,4.18934425,3399.8,3399.7,0.29466]
[1735408151540,0.29468,3399.4,3399.3,3.50249]
[1735408154242,1.65834638,3399.7,3399.1,0.2947]
[1735408154243,0.29471,3399.2,3399.1,0.2947]
[1735408154541,0.29471,3399.2,3398.7,3.94466]
[1735408154542,0.29473,3398.9,3398.8,0.29473]
[1735408155345,0.29472,3399.1,3399.0,0.29471]
[1735408156235,0.29473,3398.9,3398.8,0.29472]
[1735408156630,3.2078,3398.9,3398.2,4.60011185]
[1735408156843,3.2078,3398.9,3398.2,6.25845823]
[1735408157037,3.2078,3398.9,3398.8,0.29474]
[1735408157242,1.1763,3399.3,3399.2,0.2947]
[1735408157436,0.8816,3399.3,3399.2,0.2947]
[1735408157643,3.75665425,3399.7,3399.0,0.7368]
[1735408157873,3.46199425,3399.3,3399.2,0.2947]
[1735408158040,3.46199425,3399.3,3399.2,3.96310326]
[1735408158345,3.16769425,3399.3,3399.2,9.38384094]
[1735408158541,3.16769425,3399.3,3399.2,9.75228148]
[1735408158848,3.16769425,3399.3,3399.2,4.38384094]
[1735408159144,4.61549545,3399.5,3399.2,14.11434573]
[1735408159335,0.29465,3399.9,3399.8,0.29464]
[1735408159645,3.2078,3400.0,3399.6,0.29466]
[1735408159840,3.2078,3400.0,3399.2,13.96975479]
[1735408159841,0.4564,3399.8,3399.5,0.29467]
[1735408160230,0.29468,3399.6,3399.5,0.29467]
[1735408160541,0.29466,3399.7,3399.6,0.29466]
[1735408162335,0.75105,3399.8,3399.7,0.29466]
[1735408163546,0.4564,3399.8,3399.2,3.2078]
[1735408163741,0.4564,3399.8,3398.9,0.29472]
[1735408163742,0.2947,3399.2,3398.9,0.29472]
[1735408163946,0.29472,3399.0,3398.9,4.89483185]
[1735408164749,0.29472,3399.0,3398.9,3.90061185]
[1735408165053,0.8445,3399.1,3398.9,3.90061185]
[1735408165351,1.13921,3399.1,3399.0,0.29472]
[1735408165747,0.8445,3399.1,3399.0,0.29472]
[1735408166951,1.13921,3399.1,3399.0,0.29472]
[1735408167657,0.8445,3399.1,3399.0,0.29472]
[1735408169254,1.13921,3399.1,3399.0,0.29472]
[1735408169452,0.8445,3399.1,3398.5,0.4275]
[1735408169648,0.29474,3398.9,3398.8,0.29472]
[1735408170849,0.29476,3398.6,3398.5,0.29475]
[1735408171553,0.7368,3399.0,3398.4,6.89600292]
[1735408171554,0.29476,3398.5,3398.4,7.19076292]
[1735408172871,0.29476,3398.5,3398.4,0.29476]
[1735408173653,0.73686,3398.8,3397.8,8.09100292]
[1735408173654,0.73687,3398.7,3397.8,6.89600292]
[1735408173853,0.29479,3398.3,3398.2,0.29478]
[1735408174081,0.9006,3398.4,3397.8,6.89600292]
[1735408174253,0.9006,3398.4,3398.1,0.29479]
[1735408174254,0.29479,3398.2,3398.1,0.29479]
[1735408174868,0.452,3398.3,3397.7,3.2078]
[1735408175168,0.29482,3397.8,3397.7,3.2078]
[1735408175357,0.29482,3397.8,3397.7,3.50263]
[1735408175553,0.29482,3397.8,3397.7,3.2078]
[1735408175755,0.29482,3397.8,3397.7,3.50263]
[1735408176358,3.94478,3398.2,3397.9,0.29481]
[1735408176359,0.29481,3398.0,3397.9,0.29481]
[1735408176554,0.29482,3397.8,3397.7,3.50262]
[1735408176817,3.94479,3398.2,3397.8,0.29481]
[1735408176818,0.29482,3397.9,3397.8,0.29481]
[1735408177157,3.2078,3398.2,3397.7,3.2078]
[1735408177390,0.72102,3397.8,3397.7,3.50263]
[1735408177609,0.4262,3397.8,3397.7,3.50263]
[1735408178559,0.72102,3397.8,3397.7,3.50263]
[1735408179754,0.72102,3397.8,3397.7,3.2078]
[1735408180161,0.29485,3397.5,3397.4,0.29485]
[1735408180365,0.29485,3397.6,3397.5,0.29484]
[1735408180662,0.4221,3397.7,3397.2,0.73719]
[1735408180859,0.71935,3397.6,3397.5,0.29484]
[1735408183565,0.29479,3398.2,3398.1,0.2948]
[1735408183770,0.29479,3398.3,3398.2,0.29478]
[1735408184562,1.3568,3398.5,3398.4,0.29477]
[1735408184563,1.65157,3398.5,3398.4,0.29477]
[1735408184760,0.29479,3398.3,3398.2,0.29478]
[1735408185761,1.3568,3398.5,3398.1,3.2078]
[1735408185958,0.29478,3398.4,3398.3,0.29477]
[1735408186964,1.3568,3398.5,3398.1,3.2078]
[1735408187156,0.29479,3398.2,3398.1,3.50259]
[1735408187757,0.29482,3397.9,3397.8,0.29481]
[1735408187978,0.29484,3397.8,3397.7,0.29483]
[1735408188166,0.29484,3397.7,3397.6,0.29483]
[1735408188355,1.17614,3397.7,3397.6,0.29483]
[1735408189565,0.8813,3397.7,3397.6,0.29483]
[1735408189763,0.97027709,3398.5,3397.5,3.2078]
[1735408189959,0.29481,3398.1,3398.0,0.2948]
[1735408190371,0.73861,3398.1,3398.0,0.2948]
[1735408191278,0.29483,3397.9,3397.8,0.29481]
[1735408192361,0.4438,3398.1,3397.9,0.29481]
[1735408192362,0.29481,3398.0,3397.9,0.29481]
[1735408194571,0.7386,3398.1,3398.0,0.29481]
[1735408196269,0.29481,3398.0,3397.9,0.29481]
[1735408196479,0.4438,3398.1,3397.6,1.1694]
[1735408196769,0.8587,3398.2,3398.1,0.2948]
[1735408196969,0.4283,3398.6,3398.5,0.29476]
[1735408197185,0.4256,3399.0,3398.6,0.29475]
[1735408197378,0.4256,3399.0,3398.9,0.29473]
[1735408197672,4.61549545,3399.1,3399.0,0.29472]
[1735408197866,0.29472,3399.0,3398.9,0.29472]
[1735408198263,0.29471,3399.1,3399.0,0.29471]
[1735408198873,0.29471,3399.1,3398.7,0.4385]
[1735408198874,0.29475,3398.7,3398.6,0.29475]
[1735408200074,0.29474,3398.8,3398.7,0.29473]
[1735408200266,6.03858638,3399.3,3398.5,3.2078]
[1735408200475,0.29472,3399.1,3399.0,0.29471]
[1735408200669,0.29473,3399.0,3398.9,0.29472]
[1735408200867,5.30184638,3399.3,3398.5,3.2078]
[1735408201128,0.8641,3398.9,3398.5,3.2078]
[1735408201304,0.29475,3398.6,3398.5,3.50255]
[1735408201575,3.2078,3398.7,3398.0,0.4323]
[1735408201903,0.4385,3398.5,3398.1,0.46075503]
[1735408202068,0.2948,3398.1,3398.0,0.2948]
[1735408202271,3.2078,3398.3,3397.8,3.2078]
[1735408202469,0.4205,3398.2,3397.8,3.2078]
[1735408202672,0.8407,3398.2,3397.7,6.89600292]
[1735408202883,0.8407,3398.2,3397.5,3.50265]
[1735408202884,0.29484,3397.6,3397.5,3.50265]
[1735408203076,0.29484,3397.7,3397.6,0.29483]
[1735408204685,0.737,3398.1,3397.5,3.2078]
[1735408205180,0.29484,3397.6,3397.5,3.50264]
[1735408205885,0.29487,3397.3,3397.2,0.29487]
[1735408206425,0.29487,3397.3,3397.2,0.75575417]
[1735408206885,0.29488,3397.2,3397.1,0.29488]
[1735408207482,0.29486,3397.4,3396.7,2.82163638]
[1735408207681,0.29486,3397.4,3396.8,0.4609412]
[1735408208082,0.29486,3397.4,3396.9,0.4609412]
[1735408208382,0.29486,3397.4,3396.7,2.82163638]
[1735408208582,1.14405,3397.5,3397.4,0.29486]
[1735408209581,0.8492,3397.5,3397.4,0.29486]
[1735408210590,1.14405,3397.5,3397.4,0.29486]
[1735408212679,0.8492,3397.5,3397.4,0.29486]
[1735408212876,0.4315,3397.6,3397.0,3.94502]
[1735408212877,0.4315,3397.6,3397.5,0.29485]
[1735408213082,3.2078,3397.7,3397.6,0.29484]
[1735408214487,0.7175,3398.1,3397.6,3.50264]
[1735408214718,0.4227,3398.1,3398.0,0.29481]
[1735408215406,3.6482,3398.3,3397.6,4.86614638]
[1735408215588,3.2078,3398.3,3398.2,0.29479]
[1735408217592,0.8522,3398.8,3398.7,0.29474]
[1735408217903,0.8522,3398.8,3398.4,0.73692]
[1735408217904,3.2078,3399.0,3398.5,0.73691]
[1735408218113,3.2078,3399.0,3398.9,0.29473]
[1735408218314,4.61549545,3399.2,3398.9,0.29473]
[1735408218496,4.61549545,3399.2,3399.1,0.29471]
[1735408218893,6.67677581,3399.5,3398.8,1.65834638]
[1735408219104,6.67677581,3399.5,3399.4,0.29468]
[1735408220004,3.2078,3399.5,3399.4,0.29468]
[1735408220608,3.2078,3399.5,3398.7,3.2078]
[1735408220806,0.29471,3399.1,3399.0,0.29471]
[1735408221008,0.2947,3399.2,3399.1,0.29471]
[1735408221707,0.29469,3399.4,3399.3,0.29469]
[1735408224013,5.29214638,3399.6,3398.8,3.2078]
[1735408224307,0.7406,3399.3,3399.2,0.2947]
[1735408224700,0.2947,3399.2,3399.1,0.2947]
[1735408225009,0.7273,3399.2,3399.1,0.2947]
[1735408225311,3.6404,3399.2,3399.1,0.2947]
[1735408226629,3.2078,3399.2,3399.1,0.2947]
[1735408227614,0.426,3399.6,3399.5,0.29468]
[1735408232201,0.8571,3399.8,3399.7,0.29466]
[1735408233813,1.15175,3399.8,3399.7,0.29466]
[1735408234508,0.8571,3399.8,3399.7,0.29466]
[1735408235319,0.4245,3399.8,3399.7,0.29466]
[1735408237025,0.4292,3399.9,3399.4,0.7367]
[1735408237311,0.4639,3400.1,3400.0,0.29463]
[1735408238624,0.4639,3400.1,3399.8,3.2078]
[1735408238817,0.29464,3399.9,3399.8,0.29464]
[1735408239120,3.6717,3400.1,3400.0,0.29463]
[1735408239636,3.96632,3400.1,3400.0,0.29463]
[1735408239815,3.6717,3400.1,3400.0,0.29463]
[1735408243018,3.96632,3400.1,3400.0,0.29463]
[1735408243211,3.6717,3400.1,3399.3,3.2078]
[1735408243523,0.29467,3399.6,3399.5,0.29467]
[1735408243724,3.2078,3399.7,3399.3,3.2078]
[1735408244023,3.2078,3399.7,3399.3,3.50248]
[1735408244024,0.29468,3399.4,3399.3,3.50248]
[1735408244521,0.74798,3399.4,3399.3,3.50248]
[1735408246112,0.4533,3399.4,3399.3,3.50248]
[1735408246316,0.74798,3399.4,3399.3,3.50248]
[1735408248309,0.4533,3399.4,3399.3,3.50248]
[1735408249309,0.4533,3399.4,3399.3,0.29468]
[1735408250515,0.4396,3399.5,3399.0,0.73679]
[1735408250711,2.85334638,3400.2,3399.0,0.73679]
[1735408250712,0.4334,3399.8,3399.7,0.29466]
[1735408251315,0.8809,3400.1,3400.0,0.29463]
[1735408251710,1.17552,3400.1,3400.0,0.29463]
[1735408252106,0.8809,3400.1,3400.0,0.29463]
[1735408252318,3.2078,3400.2,3399.7,0.29466]
[1735408252511,3.2078,3400.2,3400.1,0.29462]
[1735408253015,0.4463,3400.4,3400.3,0.29461]
[1735408253417,0.7409,3400.4,3400.3,0.29461]
[1735408253651,0.4463,3400.4,3400.3,0.29461]
[1735408256116,0.7409,3400.4,3400.3,0.29461]
[1735408256515,0.4463,3400.4,3400.3,0.29461]
[1735408257717,3.2078,3400.7,3400.6,0.29458]
[1735408258726,3.2078,3400.7,3400.3,2.39484638]
[1735408258727,0.8946,3400.9,3400.8,0.29456]
[1735408259523,0.8946,3400.9,3400.4,3.2078]
[1735408259963,0.29459,3400.6,3400.5,0.29458]
[1735408260340,0.29459,3400.5,3400.4,3.2078]
[1735408260525,1.65834638,3400.8,3399.8,7.63262292]
[1735408260526,0.29464,3400.1,3400.0,3.50242]
[1735408260716,0.73644,3400.7,3400.0,3.2078]
[1735408261023,0.29461,3400.3,3400.2,0.29461]
[1735408261523,4.86614638,3400.8,3400.0,3.2078]
[1735408261710,0.2946,3400.5,3400.4,0.2946]
[1735408262224,0.2946,3400.5,3400.0,3.94438]
[1735408262225,0.29461,3400.3,3400.1,0.29462]
[1735408262428,0.29461,3400.3,3400.0,3.2078]
[1735408262429,0.29461,3400.3,3400.2,0.29461]
[1735408263323,0.4324,3400.3,3399.4,3.2078]
[1735408263517,0.29465,3399.9,3399.8,0.29464]
[1735408265237,4.91014545,3399.9,3399.8,0.29464]
[1735408266817,4.61549545,3399.9,3399.8,0.29464]
[1735408267020,4.61549545,3399.9,3399.8,3.50244]
[1735408267316,4.61549545,3399.9,3399.8,3.96295318]
[1735408267820,4.61549545,3399.9,3399.8,0.75515318]
[1735408268019,4.91013545,3399.9,3399.8,0.75515318]
[1735408268232,0.29467,3399.7,3399.6,0.29466]
[1735408269018,0.29464,3400.0,3399.9,0.29463]
[1735408269720,3.76430472,3400.1,3400.0,0.29463]
[1735408270823,3.76430472,3400.1,3399.5,0.73668]